Cogmind - Beta 13 @@@ ROGUE MODE // 2024.06.12 @ 17:33:33 Player: anthonyiye Result: Destroyed by Y-45 Defender with Beam Rifle Performance ------------- Evolutions (1) 500 Regions Visited (4) 800 Robots Destroyed (22) 110 Value Destroyed (569) 569 Prototype IDs (0) 0 Alien Tech Used (0) 0 Bonus (0) 0 TOTAL SCORE: 1979 Bonus ------- None Cogmind --------- Core Integrity 0/400 Matter 285/300 Energy 96/100 System Corruption 1% Temperature Cool (9) Movement Core (200) Ox3 Location -9/Storage Parts ------- > --- POWER (1) -------- (None) > --- PROPULSION (2) --- (None) > --- UTILITY (4) ------ Medium Storage Unit Signal Interpreter > --- WEAPON (2) ------- (None) > --- INVENTORY (10) --- Light Deuterium Engine Nuclear Core Nuclear Core Carbon-fiber Leg Heat Sink Improved Heat Sink Huge Storage Unit Structural Scanner Sensor Array Hacking Suite Peak State ------------ > --- POWER ------------ Light Deuterium Engine > --- PROPULSION ------- Armored Treads Armored Treads > --- UTILITY ---------- Improved Heat Sink Medium Storage Unit Sensor Array Signal Interpreter > --- WEAPON ----------- Assault Rifle Heavy Assault Rifle > --- INVENTORY -------- Light Deuterium Engine Nuclear Core Nuclear Core Carbon-fiber Leg Heat Sink Huge Storage Unit Structural Scanner Sensor Array Hacking Suite Heavy Assault Rifle [Rating: 20] Favorites ----------- Power Deuterium Engine Engine Deuterium Engine Propulsion Armored Treads Treads Armored Treads Leg Aluminum Leg Utility Medium Storage Unit Device Heat Sink Storage Medium Storage Unit Processor Signal Interpreter Weapon Assault Rifle Ballistic Gun Assault Rifle Build | -11 -10 -10 -9 -9 ------- Run | Yrd Mat Min Mat Sto Slots Evolved 2 | . . . 2 . Power . | . . . . . Propulsion . | . . . . . Utility 2 | . . . 2 . Weapon . | . . . . . Parts Attached 26 | 6 5 3 8 4 Power 4 | 1 . 2 1 . Engine 4 | 1 . 2 1 . Core . | . . . . . Reactor . | . . . . . Propulsion 8 | 2 4 . 2 . Treads 2 | . . . 2 . Leg 6 | 2 4 . . . Wheel . | . . . . . Hover . | . . . . . Flight . | . . . . . Utility 9 | 1 1 . 4 3 Device 7 | 1 . . 3 3 Storage 1 | . 1 . . . Processor 1 | . . . 1 . Hackware . | . . . . . Protection . | . . . . . Artifact . | . . . . . Weapon 5 | 2 . 1 1 1 Energy Gun . | . . . . . Energy Cannon . | . . . . . Ballistic Gun 5 | 2 . 1 1 1 Ballistic Cannon . | . . . . . Launcher . | . . . . . Special Weapon . | . . . . . Impact Weapon . | . . . . . Slashing Weapon . | . . . . . Piercing Weapon . | . . . . . Special Melee Weapon . | . . . . . Unidentified Prototypes . | . . . . . Parts Lost 14 | . 1 4 2 7 Power 3 | . 1 . 1 1 Propulsion 4 | . . 2 . 2 Utility 2 | . . . . 2 Weapon 5 | . . 2 1 2 Highest Loss Streak 6 | . 1 2 1 6 To Critical Strikes . | . . . . . Average Slot Usage (%) 90 | . 90 92 89 89 Engine 11 | . 13 13 10 9 Treads 11 | . . . 22 20 Leg 11 | . 28 24 . . Device 17 | . 14 14 20 22 Storage 10 | . 5 14 11 11 Processor 3 | . . . 4 11 Ballistic Gun 22 | . 28 25 20 15 Naked Turns . | . . . . . Heaviest Build 27 | 8 18 24 27 23 Greatest Support 40 | 20 20 20 40 40 Greatest Overweight (x) 7 | 2 . 7 . 5 Average Overweight (x) . | 1 . 1 . . Largest Inventory Capacity 10 | 5 10 10 10 10 Average Capacity 9 | 5 7 10 10 10 Most Carried 10 | 5 10 10 10 10 Average Carried 8 | 4 6 9 8 9 Final Capacity 10 | 5 10 10 10 10 Final Carried 10 | 4 10 10 10 10 Class Distribution -------------------- 100% | Mutant Dominant Class ---------------- Mutant | -10/Materials Mutant | -10/Mines Mutant | -9/Materials Mutant | -9/Storage Resources | -11 -10 -10 -9 -9 ----------- Run | Yrd Mat Min Mat Sto Matter Collected 805 | 273 111 138 202 81 Remotely . | . . . . . Salvage Created 829 | 45 111 152 311 210 Parts 45 | 2 7 10 16 10 Haulers Intercepted 3 | . . . 2 1 Recyclers Shooed . | . . . . . Parts Field Recycled . | . . . . . Retrieved Matter . | . . . . . Parts Self-Destructed . | . . . . . Prevented . | . . . . . Kills | -11 -10 -10 -9 -9 ------- Run | Yrd Mat Min Mat Sto Combat Hostiles Destroyed 15 | 1 2 4 4 4 Guns 15 | 1 2 4 4 4 Classes Destroyed 5 | 1 2 1 1 . Hauler 3 | . . . 2 1 Operator 2 | . 1 . 1 . Watcher 2 | . 1 . 1 . Swarmer 1 | . . 1 . . Grunt 14 | 1 2 3 4 4 Best Kill Streak 5 | 1 3 3 5 3 Combat Bots Only 4 | 1 2 3 4 2 Max Kills in Single Turn 1 | 1 1 1 1 1 Gunslinging . | . . . . . Exploded . | . . . . . Melee . | . . . . . Uniques/NPCs Destroyed . | . . . . . Combat | -11 -10 -10 -9 -9 -------- Run | Yrd Mat Min Mat Sto Hostile Shots Fired 275 | 4 44 67 61 99 Missed 78 | . 18 17 14 29 Damage Taken 2490 | 44 253 562 616 1015 Core 589 | 11 53 112 65 348 Absorbed by Shields . | . . . . . Core Remaining (%) 62 | 95 . 29 . . Volleys Fired 75 | 3 17 15 22 18 Largest 2 | 2 2 2 2 2 Hottest 46 | 40 40 40 43 46 Shots Fired 135 | 6 34 29 44 22 Gun 135 | 6 34 29 44 22 Cannon . | . . . . . Launcher . | . . . . . Special . | . . . . . Kinetic 135 | 6 34 29 44 22 Thermal . | . . . . . Explosive . | . . . . . Electromagnetic . | . . . . . Robot Hit Streak 12 | 3 12 12 6 10 Robot Miss Streak 6 | 1 2 6 2 1 Penetration Max . | . . . . . Secondary Targets 2 | . . 2 . . Max Gunslinging Chain 1 | . . 1 . . Shots Hit Robots 94 | 4 23 19 30 18 Core Hits 37 | 2 7 7 14 7 Critical Kills . | . . . . . Critical Parts Destroyed . | . . . . . Critical Strikes . | . . . . . Melee Attacks . | . . . . . Impact . | . . . . . Slashing . | . . . . . Piercing . | . . . . . Sneak Attacks . | . . . . . Combat Hostiles . | . . . . . Follow-up Attacks . | . . . . . Damage Inflicted 1282 | 60 296 236 412 278 Guns 1275 | 57 296 236 412 274 Cannons . | . . . . . Explosions . | . . . . . Melee . | . . . . . Ramming 7 | 3 . . . 4 Kinetic 1275 | 57 296 236 412 274 Thermal . | . . . . . Explosive . | . . . . . Electromagnetic . | . . . . . Impact . | . . . . . Slashing . | . . . . . Piercing . | . . . . . Highest Corruption 1 | . . . . 1 Average Corruption 1 | . . . . 1 Corruption Purged . | . . . . . Corruption Blocked . | . . . . . Effects 2 | . . . . 2 Message Errors 1 | . . . . 1 Heat Flow Errors 1 | . . . . 1 Overload Shots . | . . . . . Overflow Damage . | . . . . . Projectiles . | . . . . . Explosions . | . . . . . Melee . | . . . . . Knockbacks . | . . . . . Impact . | . . . . . Kinetic . | . . . . . Secondary . | . . . . . Self-Inflicted Damage . | . . . . . Shots . | . . . . . Rammed 1 | . . . . 1 Targets Rammed 2 | 1 . . . 1 Kicked 1 | 1 . . . . Crushed . | . . . . . Highest Temperature 181 | . . . . 181 Average Temperature 98 | . . . . 98 Received Heat Transfer 966 | 24 90 180 273 399 Siege Activations . | . . . . . Robots Corrupted . | . . . . . Combat Hostiles . | . . . . . Parts Fried . | . . . . . Impact Corruptions . | . . . . . Robots Melted . | . . . . . Combat Hostiles . | . . . . . Parts Melted . | . . . . . Heat Transferred . | . . . . . Parts Sabotaged . | . . . . . Parts Stolen . | . . . . . Parts Stripped . | . . . . . Power Chain Reactions . | . . . . . Alert | -11 -10 -10 -9 -9 ------- Run | Yrd Mat Min Mat Sto Peak Influence 191 | 20 144 157 191 135 Initial 57 | . 13 52 57 . Average 89 | 4 90 104 112 59 Maximum Alert Level . | . . . . . Low Security (%) 100 | 100 100 100 100 100 Level 1 . | . . . . . Level 2 . | . . . . . Level 3 . | . . . . . Level 4 . | . . . . . Level 5 . | . . . . . High Security . | . . . . . Max Security . | . . . . . Squads Dispatched 12 | . 5 1 3 3 Investigation 5 | . 2 1 1 1 Extermination . | . . . . . Reinforcement 7 | . 3 . 2 2 Assault . | . . . . . Garrison . | . . . . . Intercept . | . . . . . Searches Triggered . | . . . . . Construction Impeded . | . . . . . Haulers Reinforced . | . . . . . Active Scanning Responses . | . . . . . Cargo Convoy Interrupts . | . . . . . Stealth | -11 -10 -10 -9 -9 --------- Run | Yrd Mat Min Mat Sto Distress Signals 3 | . 1 . 1 1 Communications Jammed . | . . . . . Distress Signals . | . . . . . Times Spotted 45 | 1 12 8 11 13 Peak Tracking Total 7 | 1 7 3 5 6 Tactical Retreats 1 | . . 1 . . Traps | -11 -10 -10 -9 -9 ------- Run | Yrd Mat Min Mat Sto Traps Triggered 3 | . 1 . 1 1 Indirectly . | . . . . . Trap Hack Attempts . | . . . . . Triggered . | . . . . . Disarmed . | . . . . . Reprogrammed . | . . . . . Reused . | . . . . . Traps Extracted . | . . . . . Installed . | . . . . . Triggered . | . . . . . Machines | -11 -10 -10 -9 -9 ---------- Run | Yrd Mat Min Mat Sto Machines Disabled 1 | . . 1 . . Max in Single Turn 1 | . . 1 . . Machines Repaired . | . . . . . Machines Dismantled . | . . . . . Machines Sabotaged . | . . . . . Overloaded Fab Kills . | . . . . . Hacking | -11 -10 -10 -9 -9 --------- Run | Yrd Mat Min Mat Sto Machines Accessed 10 | . 4 1 2 3 Terminals 9 | . 4 . 2 3 Fabricators . | . . . . . Repair Stations . | . . . . . Recycling Units . | . . . . . Scanalyzers . | . . . . . Garrison Access . | . . . . . Total Hacks 21 | . 9 1 5 6 Successful 7 | . 2 1 1 3 Failed 14 | . 7 . 4 3 Catastrophic 6 | . 3 . 2 1 Database Lockouts . | . . . . . Manual 12 | . 7 . 4 1 Terminals 20 | . 9 . 5 6 Fabricators . | . . . . . Repair Stations . | . . . . . Recycling Units . | . . . . . Scanalyzers . | . . . . . Garrison Access . | . . . . . Terminal Hacks 7 | . 2 1 1 3 Open Door 2 | . . 1 . 1 Branch Access Points 1 | . 1 . . . Emergency Access Points 1 | . . . . 1 Terminal Index 1 | . 1 . . . Locate Traps 1 | . . . 1 . Recall Investigation 1 | . . . . 1 Fabricator Hacks . | . . . . . Repair Station Hacks . | . . . . . Recycling Unit Hacks . | . . . . . Scanalyzer . | . . . . . Garrison Access Hacks . | . . . . . Unauthorized Hacks . | . . . . . Terminals . | . . . . . Fabricators . | . . . . . Repair Stations . | . . . . . Recycling Units . | . . . . . Scanalyzers . | . . . . . Garrison Access . | . . . . . Data Cores Recovered . | . . . . . Used . | . . . . . Hacking Detections 8 | . 4 . 2 2 Full Trace Events 2 | . 1 . . 1 Feedback Events . | . . . . . Feedback Blocked . | . . . . . Robot Schematics Acquired . | . . . . . Robots Built . | . . . . . Authchips . | . . . . . Time . | . . . . . Total Robot Build Rating . | . . . . . Part Schematics Acquired . | . . . . . Parts Built . | . . . . . Authchips . | . . . . . Time . | . . . . . Total Part Build Rating . | . . . . . Parts Repaired . | . . . . . Time . | . . . . . Parts Recycled . | . . . . . Recycled Matter . | . . . . . Retrieved Matter . | . . . . . Retrieved Components . | . . . . . Parts Scanalyzed . | . . . . . Part Schematics Acquired . | . . . . . Parts Damaged . | . . . . . Bothacking | -11 -10 -10 -9 -9 ------------ Run | Yrd Mat Min Mat Sto Used RIF Installer . | . . . . . Robots Hacked . | . . . . . Non-combat . | . . . . . Combat . | . . . . . Robot Hacks Applied . | . . . . . Relay Couplers Released . | . . . . . Fabnet Peak Effective % . | . . . . . Robots Rewired . | . . . . . Allies Hacked . | . . . . . Hacks Repelled . | . . . . . Allies | -11 -10 -10 -9 -9 -------- Run | Yrd Mat Min Mat Sto Total Allies . | . . . . . Largest Group . | . . . . . Highest-Rated Group . | . . . . . Highest-Rated Ally . | . . . . . Total Orders . | . . . . . Ally Attacks . | . . . . . Total Damage . | . . . . . Kills . | . . . . . Allies Corrupted . | . . . . . Allies Melted . | . . . . . Intel | -11 -10 -10 -9 -9 ------- Run | Yrd Mat Min Mat Sto Robot Analysis Total . | . . . . . Derelict Logs Recovered . | . . . . . Drone Launches 5 | . . . . 5 Drone Recoveries 1 | . . . . 1 Exploration | -11 -10 -10 -9 -9 ------------- Run | Yrd Mat Min Mat Sto Turns Passed 1534 | 92 352 288 498 304 Spaces Moved 802 | 67 234 121 246 134 Core 68 | 65 . 2 . 1 Treads 379 | . . . 246 133 Legs 355 | 2 234 119 . . Wheels . | . . . . . Hover . | . . . . . Flight . | . . . . . Fastest Speed 50 | 50 120 120 170 170 Average Speed 153 | 102 120 192 170 170 Slowest Speed 400 | 150 120 400 170 300 Overloaded Moves . | . . . . . Propulsion Burnouts . | . . . . . Robots Hopped . | . . . . . Cave-ins Triggered . | . . . . . Exploration Rate (%) 25 | 8 53 20 20 26 Regions Visited 4 Branch Regions 2 Pre-discovered Areas . | . . . . . Known Exits Taken 2 | . 1 . 1 . Unknown Exits Taken 2 | 1 . 1 . . Scrap Searched 1 | . . 1 . . Spaces Dug . | . . . . . Terrain Destroyed . | . . . . . Melee . | . . . . . Projectile . | . . . . . AOE . | . . . . . Terrain Rammed . | . . . . . Walls Destroyed . | . . . . . Machines Disabled . | . . . . . Actions | -11 -10 -10 -9 -9 --------- Run | Yrd Mat Min Mat Sto Total 976 | 81 275 152 282 186 Wait 29 | . . 1 2 26 Move 798 | 66 233 120 245 134 Hop . | . . . . . Pick Up 26 | 5 11 7 3 . Fast Attach 12 | 5 1 . 3 3 Attach 9 | 1 . 2 5 1 Detach 3 | . . . 2 1 Swap 5 | . 4 1 . . Drop 17 | . 9 6 . 2 Fire 75 | 3 17 15 22 18 Melee . | . . . . . Ram . | . . . . . Kick 1 | 1 . . . . Crush 1 | . . . . 1 Escape Stasis . | . . . . . Rewire . | . . . . . Trap . | . . . . . Miscellaneous . | . . . . . Route ------- -11/Scrapyard -10/Materials (discovered 2 exits: *Mat / *Min) -10/Mines -9/Materials (discovered 2 exits: *Sto x2) -9/Storage History --------- Turn | Location | Event 2 | -11/Scrapyard | Met Revision 17 60 | -11/Scrapyard | Discovered new exit (range 8) 93 | -11/Scrapyard | Entered Materials 321 | -10/Materials | Build established: Mutant 374 | -10/Materials | Discovered new exit (range 5) 398 | -10/Materials | Identified exit to Mines 445 | -10/Materials | Entered Mines 452 | -10/Mines | Met a Derelict shopkeep closing up shop 668 | -10/Mines | Discovered new exit (range 8) 718 | -10/Mines | Core integrity fell below 50% 733 | -10/Mines | Entered Materials 733 | -9/Materials | Evolved 2 slots: Utility x2 1161 | -9/Materials | Discovered new exit (range 16) 1213 | -9/Materials | Discovered new exit (range 11) 1230 | -9/Materials | Identified exit to Storage 1231 | -9/Materials | Entered Storage 1497 | -9/Storage | Core integrity fell below 50% 1530 | -9/Storage | Core integrity fell below 20% 1535 | -9/Storage | Destroyed by Y-45 Defender with Beam Rifle Last Messages --------------- Drone released from Drone Bay. Drone destroyed. Dropped Drone Bay. Acquired Drone Bay. Drone destroyed. Drone released from Drone Bay. Dropped Drone Bay. >> Lost connection to Drone. Acquired Drone Bay. Drone suffers critical hit (Destroy). >> Reconnected with Drone. Drone released from Drone Bay. Drone retrieved by Drone Bay. Drone suffers critical hit (Burn). Critical hit (Burn: +37). Drone destroyed. Arm. Treads destroyed. Drone Bay destroyed. Sensor Array destroyed. [Achievement: First Step to Greatness] Map ----- +----------------------------------------------------+ | ????????????????????????????????????# #??? | | ?????????????????????????????" ##### #??? | | ?????????????????????????????" / %#??? | | ????????????????????????????" ## ##/###? | | ?????????????????????????????????# #^%[ #? | | ?????????????????????????????????? #=" #? | | ??????????????????????????????#+## #%"T #? | | ??????????????????????????????# # "" #? | | ??????????????????????????????# # ^^ #? | | ??????????????????????????????# # != #? | | ??????????????????????????????# # !^ ## | | ??????????????????????????????# / = # | | ??????????????????????????????# #####+### | | ?????????????????????????????## # [! # | | ?????????????????????????????# + # | | ?????????????????????????????# ## # | | ?????????????????????????????# ## # | | ?????????????????????????????# ##[ ! # | | ??????????????#?????????????## ## # | | ??????????????# ######+### # # | | ??????????????# # [ # | | ??????????????# + = # | | ??????????????# #####/#### # # | | ??????????????????????# % T### ## # | | ??????????????????????##Y###?# ########## | | ??????????????????????#!Y@#??# #????????? | | ??????????????????????#YY!#??# #????????? | | ??????????????????????#!Y!#??# #????????? | | ??????????????????????# Y!#?? ????????? | | ??????????????????????#####?? ????????? | | ????????????????????????????? ????????? | | ????????????????????????????? +???????? | | ?????????????????????????????# ##???????? | | ?????????????????????????????? #????????? | | ?????????????????????????????? #????????? | | ?????????????????????????????????????????? | | ?????????????????????????????????????????? | | ?????????????????????????????????????????? | | ?????????????????????????????????????????? | | ?????????????????????????????????????????? | | ?????????????????????????????????????????? | | ?????????????????????????????????????????? | | ?????????????????????????????????????????? | | ?????????????????????????????????????????? | | ?????????????????????????????????????????? | | ?????????????????????????????????????????? | | | | | | | | | +----------------------------------------------------+ Best States ------------- Heat Dissipation 52 Energy Generation 14 Energy Capacity 275 Matter Stores 300 Matter Capacity 300 Sight Range 16 Robot Scan Range 14 Terrain Scan Density 10 Evasion (%) 55 Recoil Reduction 2 Item Schematics ----------------- None Robot Schematics ------------------ None Fabricated ------------ Nothing Alien Tech Used ----------------- None Achievements -------------- First Step to Greatness Challenges ------------ None Game ------ Seed SpliceSupercompositeDrive Manual? 0 Play Time 00:13:52 Cumulative 3.2 hours Start 2024.06.12 @ 17:19:38 End 2024.06.12 @ 17:33:33 Sessions 1 Manual Loads 0 Difficulty Rogue Special Mode None Game No. 2 Rogue 2 Adventurer 0 Explorer 0 Win Type - Total 1 Types 1/0/0/0/0/0/0/0/0 Lore% 5 Gallery% 5 Achievement% 12 Wizard Run 0 Options --------- Layout 1 ASCII 0 Keyboard 1 Movement Arrows Keybinds 0 Fullscreen 1 Font 24/Smallcaps Map View 50x35 Zoom Use 0% Tactical HUD 0 Map Filters NONE Filters NONE Steam 0 RUN: 53b4553e-fb0a-491e-92bd-e0227eeabbd5